[Event "*** SCC Grand Prix: Titled Tuesday Blitz"]
[Site "Chess.com"]
[Date "2020.09.29"]
[Round "9"]
[White "Indianlad"]
[Black "Alexander_Moskalenko"]
[Result "1-0"]
[WhiteElo "2943"]
[BlackElo "2846"]
[TimeControl "180+1"]
[EndTime "11:43:03 PDT"]
[Termination "Indianlad won by resignation"]

1. Nf3 {[%clk 0:03:00.9]} 1... d5 {[%clk 0:02:58.3]} 2. e3 {[%clk 0:03:00.2]}
2... c6 {[%clk 0:02:58.4]} 3. c4 {[%clk 0:03:00.5]} 3... Nf6 {[%clk 0:02:59]} 4.
Nc3 {[%clk 0:03:00.5]} 4... Nbd7 {[%clk 0:02:58.8]} 5. d4 {[%clk 0:03:00.3]}
5... e6 {[%clk 0:02:58.1]} 6. Rg1 {[%clk 0:03:00.9]} 6... Bd6 {[%clk 0:02:50.5]}
7. g4 {[%clk 0:02:58.4]} 7... O-O {[%clk 0:02:50.8]} 8. g5 {[%clk 0:02:54.7]}
8... Ne4 {[%clk 0:02:49.8]} 9. Nxe4 {[%clk 0:02:54.4]} 9... dxe4 {[%clk
0:02:49]} 10. Nd2 {[%clk 0:02:55]} 10... Bb4 {[%clk 0:02:47.4]} 11. a3 {[%clk
0:02:53.5]} 11... Bxd2+ {[%clk 0:02:46.1]} 12. Bxd2 {[%clk 0:02:54.4]} 12... c5
{[%clk 0:02:17.9]} 13. Bc3 {[%clk 0:02:54.5]} 13... b6 {[%clk 0:02:17.6]} 14. h4
{[%clk 0:02:53.4]} 14... Bb7 {[%clk 0:02:14]} 15. h5 {[%clk 0:02:53.7]} 15... e5
{[%clk 0:02:07.4]} 16. dxe5 {[%clk 0:02:51]} 16... Qe7 {[%clk 0:02:07.3]} 17.
Qd6 {[%clk 0:02:33.8]} 17... Rfe8 {[%clk 0:02:06.9]} 18. g6 {[%clk 0:02:30.8]}
18... hxg6 {[%clk 0:01:57.3]} 19. hxg6 {[%clk 0:02:30.6]} 19... fxg6 {[%clk
0:01:58]} 20. O-O-O {[%clk 0:02:08]} 20... Nxe5 {[%clk 0:01:54.1]} 21. Bxe5
{[%clk 0:02:06.3]} 21... Qxe5 {[%clk 0:01:55]} 22. Qxe5 {[%clk 0:01:58.4]} 22...
Rxe5 {[%clk 0:01:55.9]} 23. Rxg6 {[%clk 0:01:58.9]} 23... Rf8 {[%clk 0:01:54.4]}
24. Bh3 {[%clk 0:01:57.1]} 24... Rxf2 {[%clk 0:01:49.1]} 25. Rd7 {[%clk
0:01:42.3]} 25... Rf7 {[%clk 0:01:48.3]} 26. Be6 {[%clk 0:01:35.8]} 26... Rxe6
{[%clk 0:01:48.1]} 27. Rd8+ {[%clk 0:01:35.9]} 27... Kh7 {[%clk 0:01:41.6]} 28.
Rxe6 {[%clk 0:01:35.8]} 28... g5 {[%clk 0:01:42.2]} 29. Rde8 {[%clk 0:01:33.3]}
29... g4 {[%clk 0:01:39.6]} 30. R8e7 {[%clk 0:01:32.9]} 30... Kg7 {[%clk
0:01:40.3]} 31. Re5 {[%clk 0:01:23]} 31... Bc8 {[%clk 0:01:37.6]} 32. Rxf7+
{[%clk 0:01:20.3]} 32... Kxf7 {[%clk 0:01:38.5]} 33. Kd2 {[%clk 0:01:19]} 33...
Kf6 {[%clk 0:01:38.5]} 34. Rxe4 {[%clk 0:01:19.2]} 34... Be6 {[%clk 0:01:35.1]}
35. Ke2 {[%clk 0:01:18.3]} 35... a6 {[%clk 0:01:32.2]} 36. Kf2 {[%clk
0:01:18.1]} 36... Kf5 {[%clk 0:01:29.3]} 37. Rf4+ {[%clk 0:01:17.7]} 37... Ke5
{[%clk 0:01:30]} 38. Kg3 {[%clk 0:01:18.5]} 38... a5 {[%clk 0:01:26.7]} 39. b3
{[%clk 0:01:10.7]} 39... Bf5 {[%clk 0:01:24.6]} 40. Kf2 {[%clk 0:01:08.1]} 40...
Bc2 {[%clk 0:01:24.3]} 41. Rxg4 {[%clk 0:01:07.1]} 41... Bxb3 {[%clk 0:01:23.9]}
42. Ke2 {[%clk 0:01:06.3]} 42... Bc2 {[%clk 0:01:18.1]} 43. Kd2 {[%clk
0:01:06.3]} 43... Bf5 {[%clk 0:01:18.7]} 44. Rh4 {[%clk 0:01:06.3]} 44... Be6
{[%clk 0:01:18]} 45. Kd3 {[%clk 0:01:06.6]} 45... a4 {[%clk 0:01:06]} 46. Rh5+
{[%clk 0:01:01.6]} 46... Kd6 {[%clk 0:01:06.4]} 47. e4 {[%clk 0:01:01.4]} 47...
Bg4 {[%clk 0:00:59.3]} 48. Rg5 {[%clk 0:01:00.2]} 48... Bh3 {[%clk 0:00:58.4]}
49. e5+ {[%clk 0:00:59.6]} 49... Ke6 {[%clk 0:00:58.2]} 50. Ke4 {[%clk
0:01:00.2]} 50... Bf1 {[%clk 0:00:58.8]} 51. Rg6+ {[%clk 0:00:59.9]} 51... Kf7
{[%clk 0:00:59.6]} 52. Rf6+ {[%clk 0:00:59.6]} 52... Ke7 {[%clk 0:00:59.5]} 53.
Rxf1 {[%clk 0:01:00.5]} 1-0

[Event "*** SCC Grand Prix: Titled Tuesday Blitz"]
[Site "Chess.com"]
[Date "2020.09.29"]
[Round "9"]
[White "Sergienko_Sergey"]
[Black "esrosenberg"]
[Result "0-1"]
[WhiteElo "2346"]
[BlackElo "2228"]
[TimeControl "180+1"]
[EndTime "11:43:04 PDT"]
[Termination "esrosenberg won by resignation"]

1. e4 {[%clk 0:02:58.8]} 1... e5 {[%clk 0:02:59.4]} 2. Nf3 {[%clk 0:02:58]} 2...
Nc6 {[%clk 0:03:00]} 3. Bb5 {[%clk 0:02:56.7]} 3... a6 {[%clk 0:02:59.9]} 4. Ba4
{[%clk 0:02:56.5]} 4... Nf6 {[%clk 0:02:59.3]} 5. Bxc6 {[%clk 0:02:56.4]} 5...
dxc6 {[%clk 0:02:58.3]} 6. d3 {[%clk 0:02:56.5]} 6... Bd6 {[%clk 0:02:52.3]} 7.
Nbd2 {[%clk 0:02:55.5]} 7... h6 {[%clk 0:02:49.2]} 8. Nc4 {[%clk 0:02:54.6]}
8... Qe7 {[%clk 0:02:48.3]} 9. b3 {[%clk 0:02:53.5]} 9... Bg4 {[%clk 0:02:44]}
10. h3 {[%clk 0:02:53.4]} 10... Bh5 {[%clk 0:02:41.4]} 11. Bb2 {[%clk
0:02:52.3]} 11... Nd7 {[%clk 0:02:38.1]} 12. Ne3 {[%clk 0:02:41.6]} 12... Bxf3
{[%clk 0:02:23.1]} 13. Qxf3 {[%clk 0:02:40.8]} 13... g6 {[%clk 0:02:23.7]} 14.
O-O {[%clk 0:02:37.5]} 14... O-O-O {[%clk 0:02:19.8]} 15. a3 {[%clk 0:02:26.2]}
15... Rhg8 {[%clk 0:02:11.3]} 16. b4 {[%clk 0:02:25.2]} 16... Rdf8 {[%clk
0:02:08.8]} 17. c4 {[%clk 0:02:24.3]} 17... Qe6 {[%clk 0:02:04.2]} 18. c5 {[%clk
0:01:59.9]} 18... Be7 {[%clk 0:02:03.9]} 19. Qe2 {[%clk 0:01:49.7]} 19... f5
{[%clk 0:02:03]} 20. f3 {[%clk 0:01:49.5]} 20... f4 {[%clk 0:01:57.7]} 21. Nc4
{[%clk 0:01:49]} 21... g5 {[%clk 0:01:52.1]} 22. Bc3 {[%clk 0:01:42.4]} 22... h5
{[%clk 0:01:51.7]} 23. Qa2 {[%clk 0:01:41.5]} 23... Qg6 {[%clk 0:01:22.7]} 24.
Nxe5 {[%clk 0:01:37.2]} 24... Nxe5 {[%clk 0:01:22.3]} 25. Bxe5 {[%clk
0:01:36.9]} 25... g4 {[%clk 0:01:22.9]} 26. fxg4 {[%clk 0:01:30.8]} 26... hxg4
{[%clk 0:01:22.9]} 27. Rxf4 {[%clk 0:01:20.3]} 27... Rxf4 {[%clk 0:01:20]} 28.
Bxf4 {[%clk 0:01:20.1]} 28... gxh3 {[%clk 0:01:19.7]} 29. g3 {[%clk 0:01:01.8]}
29... Rf8 {[%clk 0:00:47]} 30. Rf1 {[%clk 0:00:58.7]} 30... Rxf4 {[%clk
0:00:37.2]} 31. Rxf4 {[%clk 0:00:55.9]} 31... Qxg3+ {[%clk 0:00:37]} 32. Kh1
{[%clk 0:00:55.7]} 32... Qxf4 {[%clk 0:00:36.9]} 33. Qe6+ {[%clk 0:00:48.2]}
33... Kb8 {[%clk 0:00:36.5]} 34. Qxh3 {[%clk 0:00:46.5]} 34... Bh4 {[%clk
0:00:30.6]} 0-1

[Event "*** SCC Grand Prix: Titled Tuesday Blitz"]
[Site "Chess.com"]
[Date "2020.09.29"]
[Round "9"]
[White "HanSchut"]
[Black "chessmaGIA"]
[Result "1-0"]
[WhiteElo "2207"]
[BlackElo "1663"]
[TimeControl "180+1"]
[EndTime "11:43:10 PDT"]
[Termination "HanSchut won by resignation"]

1. e4 {[%clk 0:03:00.9]} 1... e5 {[%clk 0:02:59.8]} 2. Nf3 {[%clk 0:02:57.1]}
2... Nf6 {[%clk 0:02:59.4]} 3. Bc4 {[%clk 0:02:56.4]} 3... Nxe4 {[%clk
0:02:58.3]} 4. Nc3 {[%clk 0:02:54.1]} 4... Nxc3 {[%clk 0:02:56.6]} 5. dxc3
{[%clk 0:02:55]} 5... d6 {[%clk 0:02:49.1]} 6. Ng5 {[%clk 0:02:42.5]} 6... Be6
{[%clk 0:02:26.4]} 7. Nxe6 {[%clk 0:01:51]} 7... fxe6 {[%clk 0:02:27.3]} 8. Bxe6
{[%clk 0:01:51.7]} 8... Qf6 {[%clk 0:02:25]} 9. Bh3 {[%clk 0:01:44.7]} 9... Be7
{[%clk 0:02:24.3]} 10. O-O {[%clk 0:01:43.7]} 10... O-O {[%clk 0:02:24.1]} 11.
Qd5+ {[%clk 0:01:38.3]} 11... Kh8 {[%clk 0:02:24.2]} 12. Qxb7 {[%clk 0:01:38.8]}
12... Nd7 {[%clk 0:02:20.9]} 13. Qxc7 {[%clk 0:01:38.4]} 13... Nc5 {[%clk
0:02:17.4]} 14. Be3 {[%clk 0:01:17.2]} 14... Ne4 {[%clk 0:02:15.7]} 15. Qc6
{[%clk 0:01:10.2]} 15... Ng5 {[%clk 0:02:12.2]} 16. Bxg5 {[%clk 0:01:06.9]}
16... Qxg5 {[%clk 0:02:13.1]} 17. Rad1 {[%clk 0:00:58.9]} 17... Rad8 {[%clk
0:02:01.9]} 18. Qd5 {[%clk 0:00:58.3]} 18... Rf4 {[%clk 0:01:48.6]} 19. g3
{[%clk 0:00:55]} 19... Rh4 {[%clk 0:01:42.4]} 20. Bg2 {[%clk 0:00:54.8]} 20...
Rh6 {[%clk 0:01:40.1]} 21. f4 {[%clk 0:00:53.3]} 21... Qh5 {[%clk 0:01:38.1]}
22. h3 {[%clk 0:00:47.2]} 22... Bf6 {[%clk 0:01:23.2]} 23. g4 {[%clk 0:00:34.6]}
23... Qh4 {[%clk 0:01:14.3]} 24. g5 {[%clk 0:00:30.1]} 24... Bxg5 {[%clk
0:01:14.4]} 25. fxg5 {[%clk 0:00:30.1]} 25... Qxg5 {[%clk 0:01:14.4]} 26. Qf7
{[%clk 0:00:19.7]} 26... Qe3+ {[%clk 0:01:04.7]} 27. Qf2 {[%clk 0:00:17.2]}
27... Qxf2+ {[%clk 0:00:51.5]} 28. Rxf2 {[%clk 0:00:18.1]} 28... Kg8 {[%clk
0:00:50]} 29. Rdf1 {[%clk 0:00:18]} 29... Rg6 {[%clk 0:00:41.6]} 30. Kh2 {[%clk
0:00:18.3]} 30... a5 {[%clk 0:00:39.4]} 31. Bd5+ {[%clk 0:00:18.8]} 1-0

[Event "*** SCC Grand Prix: Titled Tuesday Blitz"]
[Site "Chess.com"]
[Date "2020.09.29"]
[Round "9"]
[White "GianmarcoVaR"]
[Black "KyrgyzFighter"]
[Result "0-1"]
[WhiteElo "2521"]
[BlackElo "2384"]
[TimeControl "180+1"]
[EndTime "11:43:18 PDT"]
[Termination "KyrgyzFighter won by checkmate"]

1. e4 {[%clk 0:02:39.3]} 1... e6 {[%clk 0:02:57.2]} 2. d3 {[%clk 0:02:35.9]}
2... d5 {[%clk 0:02:56.9]} 3. Nd2 {[%clk 0:02:36.8]} 3... Nf6 {[%clk 0:02:56.9]}
4. Ngf3 {[%clk 0:02:37.4]} 4... c5 {[%clk 0:02:56.6]} 5. g3 {[%clk 0:02:37.5]}
5... g6 {[%clk 0:02:57.2]} 6. Bg2 {[%clk 0:02:38.1]} 6... Bg7 {[%clk 0:02:57.8]}
7. O-O {[%clk 0:02:38.8]} 7... O-O {[%clk 0:02:58.4]} 8. Re1 {[%clk 0:02:38.2]}
8... Nc6 {[%clk 0:02:58.9]} 9. Qe2 {[%clk 0:02:30.8]} 9... Re8 {[%clk
0:02:58.6]} 10. Nf1 {[%clk 0:01:46]} 10... b6 {[%clk 0:02:57.3]} 11. e5 {[%clk
0:01:44.6]} 11... Nd7 {[%clk 0:02:56.8]} 12. Bf4 {[%clk 0:01:44.5]} 12... f6
{[%clk 0:02:56.5]} 13. exf6 {[%clk 0:01:41.5]} 13... Qxf6 {[%clk 0:02:57.4]} 14.
Ne3 {[%clk 0:01:36.1]} 14... Qxb2 {[%clk 0:02:54.8]} 15. Ng4 {[%clk 0:01:35.1]}
15... Bb7 {[%clk 0:02:38.3]} 16. h4 {[%clk 0:01:32.7]} 16... e5 {[%clk
0:02:26.3]} 17. Bh6 {[%clk 0:00:54.4]} 17... Bxh6 {[%clk 0:02:04.7]} 18. Nxh6+
{[%clk 0:00:54.1]} 18... Kg7 {[%clk 0:02:05.1]} 19. Qd2 {[%clk 0:00:50.8]} 19...
Nd4 {[%clk 0:01:37.4]} 20. Nxd4 {[%clk 0:00:30.7]} 20... exd4 {[%clk 0:01:35.7]}
21. Qg5 {[%clk 0:00:31.6]} 21... Qc3 {[%clk 0:01:10.2]} 22. Re7+ {[%clk
0:00:19.2]} 22... Rxe7 {[%clk 0:01:07.4]} 23. Qxe7+ {[%clk 0:00:17.7]} 23...
Kxh6 {[%clk 0:01:06.6]} 24. Re1 {[%clk 0:00:18.2]} 24... Rf8 {[%clk 0:00:58.8]}
25. g4 {[%clk 0:00:07.8]} 25... Bc6 {[%clk 0:00:44.3]} 26. g5+ {[%clk
0:00:04.8]} 26... Kh5 {[%clk 0:00:44.7]} 27. Qxh7+ {[%clk 0:00:02.8]} 27... Kg4
{[%clk 0:00:44.6]} 28. f3+ {[%clk 0:00:02.2]} 28... Kg3 {[%clk 0:00:44.9]} 29.
Rf1 {[%clk 0:00:02]} 29... Qd2 {[%clk 0:00:42.7]} 30. Bh1 {[%clk 0:00:01]} 30...
Qh2# {[%clk 0:00:42.2]} 0-1

[Event "*** SCC Grand Prix: Titled Tuesday Blitz"]
[Site "Chess.com"]
[Date "2020.09.29"]
[Round "9"]
[White "crazy_but_lazy"]
[Black "TimofeevAr"]
[Result "0-1"]
[WhiteElo "2543"]
[BlackElo "2845"]
[TimeControl "180+1"]
[EndTime "11:43:19 PDT"]
[Termination "TimofeevAr won by resignation"]

1. e4 {[%clk 0:03:00.9]} 1... c5 {[%clk 0:02:59.5]} 2. Nf3 {[%clk 0:03:00.9]}
2... e6 {[%clk 0:02:59.7]} 3. d4 {[%clk 0:03:01.4]} 3... cxd4 {[%clk 0:02:59.9]}
4. Nxd4 {[%clk 0:03:02.3]} 4... Nc6 {[%clk 0:03:00.3]} 5. Nc3 {[%clk 0:03:02.7]}
5... Qc7 {[%clk 0:03:00.4]} 6. Nxc6 {[%clk 0:02:57.5]} 6... bxc6 {[%clk
0:02:59.6]} 7. Bd3 {[%clk 0:02:53.2]} 7... Nf6 {[%clk 0:02:59.2]} 8. O-O {[%clk
0:02:53.3]} 8... Be7 {[%clk 0:02:58]} 9. f4 {[%clk 0:02:44.1]} 9... d5 {[%clk
0:02:57]} 10. e5 {[%clk 0:02:43.5]} 10... Nd7 {[%clk 0:02:56.4]} 11. Na4 {[%clk
0:02:41]} 11... Nb6 {[%clk 0:02:47.4]} 12. c3 {[%clk 0:02:33.1]} 12... c5 {[%clk
0:02:37.1]} 13. Be3 {[%clk 0:02:19.6]} 13... g6 {[%clk 0:02:27.6]} 14. Rc1
{[%clk 0:01:34.8]} 14... Bd7 {[%clk 0:02:18]} 15. Nxb6 {[%clk 0:01:32.9]} 15...
axb6 {[%clk 0:02:18]} 16. a3 {[%clk 0:01:32.8]} 16... O-O {[%clk 0:02:16.5]} 17.
Qd2 {[%clk 0:01:15.3]} 17... Rfd8 {[%clk 0:02:14.5]} 18. Bf2 {[%clk 0:00:45.8]}
18... Bc6 {[%clk 0:02:07.4]} 19. Rfe1 {[%clk 0:00:44.6]} 19... Rd7 {[%clk
0:02:04.6]} 20. Qe2 {[%clk 0:00:41.5]} 20... Qb7 {[%clk 0:01:59]} 21. Qg4 {[%clk
0:00:37.1]} 21... Kh8 {[%clk 0:01:17.2]} 22. Bh4 {[%clk 0:00:33.9]} 22... Bxh4
{[%clk 0:01:09.2]} 23. Qxh4 {[%clk 0:00:34.5]} 23... d4 {[%clk 0:01:08.4]} 24.
Qf6+ {[%clk 0:00:31.3]} 24... Kg8 {[%clk 0:01:08.1]} 25. Re2 {[%clk 0:00:28.3]}
25... dxc3 {[%clk 0:01:03.8]} 26. Rxc3 {[%clk 0:00:29.2]} 26... Rad8 {[%clk
0:01:03.9]} 27. Bc2 {[%clk 0:00:28.4]} 27... Rd2 {[%clk 0:01:00.2]} 28. Rxd2
{[%clk 0:00:18.8]} 28... Rxd2 {[%clk 0:00:59.5]} 29. Rd3 {[%clk 0:00:19.6]}
29... Rxd3 {[%clk 0:00:58.4]} 30. Bxd3 {[%clk 0:00:19.7]} 30... Qd7 {[%clk
0:00:59]} 31. Be2 {[%clk 0:00:15.6]} 31... Qd5 {[%clk 0:00:49.5]} 32. Bf3 {[%clk
0:00:14.6]} 32... Qd4+ {[%clk 0:00:49.2]} 33. Kf1 {[%clk 0:00:14.4]} 33... Bb5+
{[%clk 0:00:47.7]} 34. Ke1 {[%clk 0:00:14.2]} 34... Qe3+ {[%clk 0:00:45.5]} 35.
Kd1 {[%clk 0:00:14.5]} 35... Ba4+ {[%clk 0:00:45.8]} 0-1

[Event "*** SCC Grand Prix: Titled Tuesday Blitz"]
[Site "Chess.com"]
[Date "2020.09.29"]
[Round "9"]
[White "parnali1611"]
[Black "ChronicUnhappiness"]
[Result "1-0"]
[WhiteElo "2119"]
[BlackElo "2264"]
[TimeControl "180+1"]
[EndTime "11:43:28 PDT"]
[Termination "parnali1611 won by resignation"]

1. d4 {[%clk 0:03:00.9]} 1... Nf6 {[%clk 0:02:58.7]} 2. c4 {[%clk 0:02:56.8]}
2... e6 {[%clk 0:02:58]} 3. g3 {[%clk 0:02:52.1]} 3... c5 {[%clk 0:02:57]} 4. d5
{[%clk 0:02:51.4]} 4... exd5 {[%clk 0:02:54.8]} 5. cxd5 {[%clk 0:02:52.3]} 5...
d6 {[%clk 0:02:55.6]} 6. Nc3 {[%clk 0:02:51.3]} 6... g6 {[%clk 0:02:55.9]} 7.
Bg2 {[%clk 0:02:50.9]} 7... Bg7 {[%clk 0:02:56.1]} 8. Nf3 {[%clk 0:02:50.8]}
8... O-O {[%clk 0:02:56.3]} 9. O-O {[%clk 0:02:48.7]} 9... Re8 {[%clk
0:02:56.6]} 10. Nd2 {[%clk 0:02:47.6]} 10... Nbd7 {[%clk 0:02:52.9]} 11. Nc4
{[%clk 0:02:43.5]} 11... Ne5 {[%clk 0:02:51.4]} 12. Nxe5 {[%clk 0:02:32.2]}
12... Rxe5 {[%clk 0:02:50.7]} 13. Bf4 {[%clk 0:02:28.4]} 13... Re8 {[%clk
0:02:40.9]} 14. e4 {[%clk 0:02:27.2]} 14... a6 {[%clk 0:02:35.8]} 15. a4 {[%clk
0:02:24.1]} 15... Ng4 {[%clk 0:02:19.9]} 16. h3 {[%clk 0:02:13.6]} 16... Ne5
{[%clk 0:02:16.2]} 17. Kh2 {[%clk 0:02:13.3]} 17... c4 {[%clk 0:01:57.6]} 18.
Bxe5 {[%clk 0:02:08.6]} 18... Bxe5 {[%clk 0:01:55.8]} 19. f4 {[%clk 0:02:08.3]}
19... Bg7 {[%clk 0:01:53.2]} 20. Qd2 {[%clk 0:02:06.8]} 20... Bd7 {[%clk
0:01:52.6]} 21. Rae1 {[%clk 0:02:02.2]} 21... b5 {[%clk 0:01:51.7]} 22. e5
{[%clk 0:01:56.2]} 22... b4 {[%clk 0:01:47.8]} 23. Ne4 {[%clk 0:01:53.3]} 23...
dxe5 {[%clk 0:01:45.5]} 24. Nd6 {[%clk 0:01:44.7]} 24... exf4 {[%clk 0:01:44.1]}
25. Nxe8 {[%clk 0:01:30.3]} 25... fxg3+ {[%clk 0:01:43.5]} 26. Kh1 {[%clk
0:01:29.2]} 26... Bxe8 {[%clk 0:01:44.4]} 27. Qxb4 {[%clk 0:01:26.1]} 27... Qh4
{[%clk 0:00:48.9]} 28. Re4 {[%clk 0:01:17.6]} 28... Qh5 {[%clk 0:00:44.6]} 29.
Qxc4 {[%clk 0:01:14.7]} 29... Bd7 {[%clk 0:00:38.2]} 30. Rh4 {[%clk 0:01:03.9]}
30... Qe5 {[%clk 0:00:31.8]} 31. d6 {[%clk 0:01:03.2]} 31... Rc8 {[%clk
0:00:31]} 32. Qxf7+ {[%clk 0:01:01.9]} 32... Kh8 {[%clk 0:00:29.1]} 33. Qxg6
{[%clk 0:01:00.4]} 33... h6 {[%clk 0:00:17.1]} 34. Be4 {[%clk 0:00:46.3]} 34...
g2+ {[%clk 0:00:15.1]} 35. Kxg2 {[%clk 0:00:43.1]} 35... Qxb2+ {[%clk
0:00:11.6]} 36. Kh1 {[%clk 0:00:42.3]} 36... Bf5 {[%clk 0:00:09.9]} 37. Bxf5
{[%clk 0:00:40]} 1-0

[Event "*** SCC Grand Prix: Titled Tuesday Blitz"]
[Site "Chess.com"]
[Date "2020.09.29"]
[Round "9"]
[White "Matols"]
[Black "RobPeresian"]
[Result "0-1"]
[WhiteElo "2265"]
[BlackElo "2422"]
[TimeControl "180+1"]
[EndTime "11:43:30 PDT"]
[Termination "RobPeresian won on time"]

1. d4 {[%clk 0:03:00.9]} 1... d5 {[%clk 0:02:56.2]} 2. c4 {[%clk 0:03:00.6]}
2... c6 {[%clk 0:02:55.9]} 3. Nf3 {[%clk 0:03:00.4]} 3... Nf6 {[%clk 0:02:55.7]}
4. e3 {[%clk 0:03:00.6]} 4... a6 {[%clk 0:02:55.1]} 5. Nbd2 {[%clk 0:02:46.7]}
5... Bg4 {[%clk 0:02:51.2]} 6. h3 {[%clk 0:02:45.1]} 6... Bh5 {[%clk 0:02:49.7]}
7. g4 {[%clk 0:02:43.3]} 7... Bg6 {[%clk 0:02:49.1]} 8. Ne5 {[%clk 0:02:43.1]}
8... Nbd7 {[%clk 0:02:44.8]} 9. Nxg6 {[%clk 0:02:40.2]} 9... hxg6 {[%clk
0:02:44.5]} 10. Bg2 {[%clk 0:02:40.2]} 10... e6 {[%clk 0:02:40.8]} 11. O-O
{[%clk 0:02:31.4]} 11... Bd6 {[%clk 0:02:25.6]} 12. f4 {[%clk 0:02:10.7]} 12...
Qe7 {[%clk 0:02:15.5]} 13. b3 {[%clk 0:01:54.9]} 13... Ba3 {[%clk 0:02:01]} 14.
Bxa3 {[%clk 0:01:44.6]} 14... Qxa3 {[%clk 0:02:00.7]} 15. Qc1 {[%clk 0:01:40.9]}
15... Qd6 {[%clk 0:01:44.3]} 16. Qc2 {[%clk 0:01:37]} 16... a5 {[%clk
0:01:29.4]} 17. a3 {[%clk 0:01:24.4]} 17... Ke7 {[%clk 0:00:43.2]} 18. Qd3
{[%clk 0:01:02.9]} 18... Rh7 {[%clk 0:00:42.8]} 19. c5 {[%clk 0:00:46.3]} 19...
Qc7 {[%clk 0:00:41.9]} 20. b4 {[%clk 0:00:46.2]} 20... Rah8 {[%clk 0:00:34.6]}
21. b5 {[%clk 0:00:42.1]} 21... g5 {[%clk 0:00:27.7]} 22. fxg5 {[%clk
0:00:27.8]} 22... Nxg4 {[%clk 0:00:27.4]} 23. hxg4 {[%clk 0:00:24]} 23... Qg3
{[%clk 0:00:27]} 24. Rxf7+ {[%clk 0:00:17.1]} 24... Kd8 {[%clk 0:00:23.8]} 25.
Qxh7 {[%clk 0:00:02]} 25... Rxh7 {[%clk 0:00:23.3]} 26. Raf1 {[%clk 0:00:01.3]}
26... Qxe3+ {[%clk 0:00:21.7]} 0-1

[Event "*** SCC Grand Prix: Titled Tuesday Blitz"]
[Site "Chess.com"]
[Date "2020.09.29"]
[Round "9"]
[White "kakorrhaphiophobie"]
[Black "tmr88"]
[Result "1-0"]
[WhiteElo "2261"]
[BlackElo "2086"]
[TimeControl "180+1"]
[EndTime "11:43:34 PDT"]
[Termination "kakorrhaphiophobie won on time"]

1. e4 {[%clk 0:03:00.9]} 1... e5 {[%clk 0:02:59]} 2. Nf3 {[%clk 0:03:00.7]} 2...
Nc6 {[%clk 0:02:59.4]} 3. d4 {[%clk 0:03:00.5]} 3... exd4 {[%clk 0:02:58.7]} 4.
Nxd4 {[%clk 0:03:01.4]} 4... Nf6 {[%clk 0:02:58.2]} 5. Nxc6 {[%clk 0:03:01.8]}
5... bxc6 {[%clk 0:02:58.8]} 6. e5 {[%clk 0:03:02.5]} 6... Qe7 {[%clk
0:02:58.6]} 7. Qe2 {[%clk 0:03:03]} 7... Nd5 {[%clk 0:02:58.6]} 8. Nd2 {[%clk
0:03:03.7]} 8... g6 {[%clk 0:02:31.2]} 9. Ne4 {[%clk 0:03:00.5]} 9... Bg7 {[%clk
0:02:26]} 10. c4 {[%clk 0:02:53.2]} 10... Ba6 {[%clk 0:02:24.4]} 11. Bg5 {[%clk
0:02:50]} 11... Qxe5 {[%clk 0:02:11.2]} 12. Nc5 {[%clk 0:02:25.4]} 12... Nb4
{[%clk 0:01:43.4]} 13. O-O-O {[%clk 0:01:53.9]} 13... Qxe2 {[%clk 0:00:28.5]}
14. Bxe2 {[%clk 0:01:53.1]} 14... d6 {[%clk 0:00:28.9]} 15. Nxa6 {[%clk
0:01:39.4]} 15... Nxa6 {[%clk 0:00:29.8]} 16. Bf3 {[%clk 0:01:39.8]} 16... Kd7
{[%clk 0:00:25.2]} 17. a3 {[%clk 0:01:31.7]} 17... Rab8 {[%clk 0:00:22.8]} 18.
b4 {[%clk 0:01:31.3]} 18... h6 {[%clk 0:00:18.4]} 19. Be3 {[%clk 0:01:25.7]}
19... Rb7 {[%clk 0:00:16.3]} 20. b5 {[%clk 0:00:44.2]} 20... Nb8 {[%clk
0:00:16.5]} 21. a4 {[%clk 0:00:44.6]} 21... Rb6 {[%clk 0:00:06.8]} 22. Bxb6
{[%clk 0:00:26.7]} 22... axb6 {[%clk 0:00:07.7]} 23. h4 {[%clk 0:00:23.6]} 23...
cxb5 {[%clk 0:00:06.5]} 24. axb5 {[%clk 0:00:23.5]} 24... Re8 {[%clk 0:00:06.8]}
25. Rhe1 {[%clk 0:00:22.5]} 25... Re6 {[%clk 0:00:05.5]} 26. h5 {[%clk
0:00:21.8]} 26... Rxe1 {[%clk 0:00:02.5]} 27. Rxe1 {[%clk 0:00:22.7]} 27... gxh5
{[%clk 0:00:02.4]} 28. Bxh5 {[%clk 0:00:22.9]} 28... f6 {[%clk 0:00:02.2]} 29.
Bg4+ {[%clk 0:00:23.3]} 29... Kd8 {[%clk 0:00:02]} 30. Bf5 {[%clk 0:00:23.6]}
30... Nd7 {[%clk 0:00:02.4]} 31. Bxd7 {[%clk 0:00:24]} 31... Kxd7 {[%clk
0:00:01.9]} 32. g4 {[%clk 0:00:24.6]} 1-0